[Event "POL-chT 2 Liga 2019"]
[Site "Poronin"]
[Date "2019.09.08"]
[Round "2.22"]
[White "Lukasiewicz, Grzegorz"]
[Black "Maciaga, Marcin"]
[Result "1-0"]
[ECO "D78"]
[WhiteElo "2164"]
[BlackElo "2118"]
[Annotator "NA"]
[PlyCount "71"]
[EventDate "2019.09.07"]
[EventType "team-tourn"]
[EventCountry "POL"]
[SourceTitle "playchess.com"]
[Source "ChessBase"]
[SourceQuality "1"]
[TimeControl "40/5400+30:1800+30"]

1. d4 {[%emt 0:00:00]} Nf6 {[%emt 0:00:00]} 2. Nf3 {[%emt 0:00:00]} g6 {[%emt 0:00:24]} 3. g3 {[%emt 0:03:13]} Bg7 {[%emt 0:00:53]} 4. Bg2 {[%emt 0:00:07]} O-O {[%emt 0:00:08]} 5. O-O {[%emt 0:02:26]} d5 {[%emt 0:00:30]} 6. c4 {[%emt 0:03:27]} c6 {[%emt 0:00:24]} 7. Qb3 {[%emt 0:02:09]} Qb6 {[%emt 0:01:05]} 8. Nc3 {[%emt 0:17:02]} Rd8 {[%emt 0:00:37]} 9. c5 {[%emt 0:00:22]} Qa6 {[%emt 0:01:19]} 10. Re1 {[%emt 0:09:24]} b6 {[%emt 0:02:05]} 11. cxb6 {[%emt 0:03:44]} axb6 {[%emt 0:00:31]} 12. Bf4 {[%emt 0:02:44]} Re8 {[%emt 0:25:47]} 13. e4 {[%emt 0:08:17]} dxe4 {[%emt 0:06:42]} 14. Ng5 {[%emt 0:00:53]} Rf8 {[%emt 0:00:41]} 15. Ngxe4 {[%emt 0:09:56]} Be6 {[%emt 0:01:33]} 16. Nxf6+ {[%emt 0:01:57]} Bxf6 {[%emt 0:03:16]} 17. d5 {[%emt 0:02:37]} cxd5 {[%emt 0:10:54]} 18. Nxd5 {[%emt 0:00:14]} Nc6 {[%emt 0:03:14]} 19. Nxf6+ {[%emt 0:00:52]} exf6 {[%emt 0:00:09]} 20. Qc3 {[%emt 0:00:06]} Ne5 {[%emt 0:04:41]} 21. Bxe5 {[%emt 0:07:59]} Rac8 {[%emt 0:10:51]} 22. Bc7 {[%emt 0:00:12]} Rfe8 {[%emt 0:00:12]} 23. Rac1 {[%emt 0:02:32]} Qa7 {[%emt 0:02:41]} 24. Red1 {[%emt 0:01:57]} Kg7 {[%emt 0:00:46]} 25. Rd6 {[%emt 0:01:11]} Qxa2 {[%emt 0:08:53]} 26. Bb7 {[%emt 0:01:05]} Rxc7 {[%emt 0:02:46]} 27. Qxc7 {[%emt 0:00:18]} Qxb2 {[%emt 0:00:25]} 28. Rxe6 {[%emt 0:04:46]} Rxe6 {[%emt 0:00:24]} 29. Bd5 Re2 {[%emt 0:03:04]} 30. Qxf7+ {[%emt 0:01:29]} Kh6 {[%emt 0:00:09]} 31. Qf8+ {[%emt 0:05:19]} Kg5 {[%emt 0:00:59]} 32. h4+ {[%emt 0:00:47]} Kf5 {[%emt 0:01:31]} 33. Qc8+ {[%emt 0:01:18]} Ke5 {[%emt 0:00:11]} 34. Rd1 {[%emt 0:01:12]} Rd2 {[%emt 0:02:26]} 35. Qe6+ {[%emt 0:00:08]} Kd4 {[%emt 0:00:07]} 36. Qe3+ {[%emt 0:00:10]} 1-0

[Event "POL-chT 2 Liga 2019"]
[Site "Poronin"]
[Date "2019.09.08"]
[Round "2.23"]
[White "Krasiewicz, Robert"]
[Black "Pulik, Krzysztof"]
[Result "1/2-1/2"]
[ECO "A13"]
[WhiteElo "2044"]
[BlackElo "2131"]
[Annotator "NA"]
[PlyCount "91"]
[EventDate "2019.09.07"]
[EventType "team-tourn"]
[EventCountry "POL"]
[SourceTitle "playchess.com"]
[Source "ChessBase"]
[SourceQuality "1"]
[TimeControl "40/5400+30:1800+30"]

1. c4 {[%emt 0:02:27]} e6 {[%emt 0:00:00]} 2. Nf3 {[%emt 0:00:06]} d5 {[%emt 0:00:00]} 3. g3 {[%emt 0:00:07]} c5 {[%emt 0:00:01]} 4. Bg2 {[%emt 0:00:22]} Nc6 {[%emt 0:00:14]} 5. O-O {[%emt 0:00:25]} Nf6 {[%emt 0:00:06]} 6. b3 {[%emt 0:00:09]} Be7 {[%emt 0:01:19]} 7. Bb2 {[%emt 0:00:53]} d4 {[%emt 0:00:20]} 8. e3 {[%emt 0:00:10]} e5 {[%emt 0:01:28]} 9. exd4 {[%emt 0:00:55]} exd4 {[%emt 0:00:46]} 10. d3 {[%emt 0:01:50]} O-O {[%emt 0:00:06]} 11. Na3 {[%emt 0:00:16]} h6 {[%emt 0:10:13]} 12. Nc2 {[%emt 0:00:37]} a5 {[%emt 0:01:05]} 13. a3 {[%emt 0:00:19]} Qc7 {[%emt 0:07:46]} 14. b4 {[%emt 0:04:21]} axb4 {[%emt 0:00:09]} 15. axb4 {[%emt 0:00:03]} Rxa1 {[%emt 0:00:09]} 16. Qxa1 {[%emt 0:00:38]} b6 {[%emt 0:04:49]} 17. b5 {[%emt 0:03:46]} Na5 {[%emt 0:01:54]} 18. Re1 {[%emt 0:02:16]} Bf5 {[%emt 0:05:19]} 19. Qd1 {[%emt 0:00:45]} Bd6 {[%emt 0:00:16]} 20. Nh4 {[%emt 0:07:24]} Bh7 {[%emt 0:01:03]} 21. Bh3 {[%emt 0:02:47]} Re8 {[%emt 0:05:57]} 22. Qf3 {[%emt 0:06:51]} Nxc4 {[%emt 0:03:12]} 23. dxc4 {[%emt 0:01:03]} Bxc2 {[%emt 0:01:46]} 24. Rxe8+ {[%emt 0:00:03]} Nxe8 {[%emt 0:00:11]} 25. Qe2 {[%emt 0:00:03]} Be7 {[%emt 0:06:26]} 26. Qxc2 {[%emt 0:06:12]} Bxh4 {[%emt 0:00:05]} 27. gxh4 {[%emt 0:00:07]} Qe7 {[%emt 0:03:21]} 28. Bf5 {[%emt 0:01:38]} Nd6 {[%emt 0:01:00]} 29. Bd3 {[%emt 0:02:19]} Qxh4 {[%emt 0:01:29]} 30. Qd1 {[%emt 0:02:57]} Qg5+ {[%emt 0:01:35]} 31. Kh1 {[%emt 0:00:35]} Qf4 {[%emt 0:01:47]} 32. Kg2 {[%emt 0:01:23]} Qg5+ {[%emt 0:02:33]} 33. Kf1 {[%emt 0:01:06]} Qf4 {[%emt 0:03:23]} 34. h3 {[%emt 0:00:30]} Ne4 {[%emt 0:08:08]} 35. Qc2 {[%emt 0:05:57]} f5 {[%emt 0:03:11]} 36. Bc1 {[%emt 0:01:33]} Qf3 {[%emt 0:00:21]} 37. Kg1 {[%emt 0:00:30]} Nxf2 {[%emt 0:07:32]} 38. Bxf5 {[%emt 0:01:00]} Nxh3+ {[%emt 0:02:05]} 39. Bxh3 {[%emt 0:04:49]} Qxh3 {[%emt 0:00:02]} 40. Qg6 {[%emt 0:00:00]} Qh4 {[%emt 0:00:00]} 41. Kg2 {[%emt 0:03:19]} Qe1 {[%emt 0:05:59]} 42. Bxh6 {[%emt 0:01:34]} Qe2+ {[%emt 0:00:12]} 43. Kg3 {[%emt 0:00:40]} Qe1+ {[%emt 0:00:16]} 44. Kg2 {[%emt 0:05:23]} Qe2+ {[%emt 0:00:06]} 45. Kg3 {[%emt 0:00:35]} Qe1+ {[%emt 0:00:11]} 46. Kg2 {[%emt 0:00:39]} 1/2-1/2

[Event "POL-chT 2 Liga 2019"]
[Site "Poronin"]
[Date "2019.09.08"]
[Round "2.24"]
[White "Lukasiewicz, Anna"]
[Black "Andrzejewska, Anna"]
[Result "1/2-1/2"]
[ECO "C54"]
[WhiteElo "2075"]
[BlackElo "2021"]
[Annotator "NA"]
[PlyCount "154"]
[EventDate "2019.09.07"]
[EventType "team-tourn"]
[EventCountry "POL"]
[SourceTitle "playchess.com"]
[Source "ChessBase"]
[SourceQuality "1"]
[TimeControl "40/5400+30:1800+30"]

1. e4 {[%emt 0:00:00]} e5 {[%emt 0:00:00]} 2. Nf3 {[%emt 0:00:14]} Nc6 {[%emt 0:00:00]} 3. Bc4 {[%emt 0:00:27]} Bc5 {[%emt 0:00:11]} 4. c3 {[%emt 0:00:46]} Nf6 {[%emt 0:00:18]} 5. d3 {[%emt 0:01:03]} d6 {[%emt 0:01:43]} 6. O-O {[%emt 0:02:04]} h6 {[%emt 0:03:54]} 7. h3 {[%emt 0:01:52]} O-O {[%emt 0:00:26]} 8. Bb3 {[%emt 0:03:01]} Re8 {[%emt 0:04:03]} 9. Nbd2 {[%emt 0:05:15]} d5 {[%emt 0:10:06]} 10. Re1 {[%emt 0:05:25]} d4 {[%emt 0:08:11]} 11. Nf1 {[%emt 0:03:08]} Be6 {[%emt 0:09:42]} 12. Bxe6 {[%emt 0:17:47]} Rxe6 {[%emt 0:02:12]} 13. c4 {[%emt 0:00:17]} a5 {[%emt 0:04:55]} 14. Ng3 {[%emt 0:03:28]} a4 {[%emt 0:10:52]} 15. Rf1 {[%emt 0:14:11]} Qd7 {[%emt 0:04:58]} 16. Ne1 {[%emt 0:04:21]} Ne7 {[%emt 0:04:42]} 17. Rb1 {[%emt 0:08:08]} b5 {[%emt 0:02:14]} 18. b4 {[%emt 0:02:47]} axb3 {[%emt 0:01:24]} 19. axb3 {[%emt 0:00:25]} bxc4 {[%emt 0:08:26]} 20. dxc4 {[%emt 0:03:45]} Ng6 {[%emt 0:06:10]} 21. Nd3 {[%emt 0:01:21]} Bf8 {[%emt 0:01:26]} 22. Re1 {[%emt 0:05:59]} Rea6 {[%emt 0:04:31]} 23. Bd2 {[%emt 0:03:29]} Ra2 {[%emt 0:04:05]} 24. h4 {[%emt 0:01:31]} Nxh4 {[%emt 0:02:40]} 25. Nxe5 {[%emt 0:00:30]} Qe6 {[%emt 0:01:04]} 26. Nd3 {[%emt 0:01:51]} c5 {[%emt 0:02:44]} 27. Nf4 {[%emt 0:04:46]} Qg4 {[%emt 0:01:08]} 28. e5 {[%emt 0:01:41]} Qxd1 {[%emt 0:00:57]} 29. Rexd1 {[%emt 0:00:10]} Ng4 {[%emt 0:00:35]} 30. Nd3 {[%emt 0:00:40]} Rc2 {[%emt 0:00:40]} 31. Ne4 {[%emt 0:01:11]} Raa2 {[%emt 0:00:32]} 32. Ra1 {[%emt 0:02:22]} Rxa1 {[%emt 0:00:37]} 33. Rxa1 {[%emt 0:00:04]} Kh7 {[%emt 0:00:31]} 34. Be1 {[%emt 0:01:14]} Re2 {[%emt 0:00:28]} 35. Nexc5 {[%emt 0:00:39]} Bxc5 {[%emt 0:00:24]} 36. Nxc5 {[%emt 0:00:09]} Nxe5 {[%emt 0:00:27]} 37. Kf1 {[%emt 0:01:09]} Rb2 {[%emt 0:00:40]} 38. f4 {[%emt 0:00:28]} Neg6 {[%emt 0:00:27]} 39. Bf2 {[%emt 0:01:09]} Nf5 {[%emt 0:00:34]} 40. g3 {[%emt 0:00:00]} h5 {[%emt 0:00:00]} 41. Rd1 {[%emt 0:09:36]} h4 {[%emt 0:11:35]} 42. gxh4 {[%emt 0:05:47]} Ne3+ {[%emt 0:10:35]} 43. Bxe3 {[%emt 0:00:14]} dxe3 {[%emt 0:00:06]} 44. Re1 {[%emt 0:02:59]} Rf2+ {[%emt 0:01:47]} 45. Kg1 {[%emt 0:00:12]} Nxh4 {[%emt 0:01:00]} 46. Rxe3 {[%emt 0:01:20]} Rxf4 {[%emt 0:00:17]} 47. Nd3 {[%emt 0:02:05]} Rd4 {[%emt 0:01:57]} 48. c5 {[%emt 0:02:46]} Nf5 {[%emt 0:03:20]} 49. Rh3+ {[%emt 0:03:40]} Kg6 {[%emt 0:00:54]} 50. Kf2 {[%emt 0:02:50]} Kf6 {[%emt 0:01:22]} 51. Ke2 {[%emt 0:01:18]} g5 {[%emt 0:01:20]} 52. b4 {[%emt 0:02:27]} g4 {[%emt 0:01:07]} 53. Rh8 {[%emt 0:00:33]} g3 {[%emt 0:01:08]} 54. Rg8 {[%emt 0:00:28]} Ng7 {[%emt 0:01:01]} 55. c6 {[%emt 0:01:21]} Rxd3 {[%emt 0:00:33]} 56. Rxg7 {[%emt 0:00:52]} Rc3 {[%emt 0:00:29]} 57. Rg4 {[%emt 0:00:40]} Rxc6 {[%emt 0:00:28]} 58. Rxg3 {[%emt 0:00:12]} Ke5 {[%emt 0:00:16]} 59. Rb3 {[%emt 0:00:28]} Kd4 {[%emt 0:00:40]} 60. b5 {[%emt 0:00:29]} Rb6 {[%emt 0:00:17]} 61. Kf3 {[%emt 0:00:26]} Kc4 {[%emt 0:00:40]} 62. Rb1 {[%emt 0:00:11]} Rxb5 {[%emt 0:00:36]} 63. Rxb5 {[%emt 0:00:23]} Kxb5 {[%emt 0:00:03]} 64. Ke4 {[%emt 0:00:07]} Kc6 {[%emt 0:00:08]} 65. Ke5 {[%emt 0:00:08]} Kd7 {[%emt 0:00:04]} 66. Kf6 {[%emt 0:00:06]} Ke8 {[%emt 0:00:04]} 67. Kf5 {[%emt 0:00:11]} Ke7 {[%emt 0:00:08]} 68. Ke5 {[%emt 0:00:04]} f6+ {[%emt 0:00:10]} 69. Kf5 {[%emt 0:00:03]} Kf7 {[%emt 0:00:06]} 70. Kf4 {[%emt 0:00:04]} Ke7 {[%emt 0:00:19]} 71. Kf5 {[%emt 0:00:07]} Kf7 {[%emt 0:00:03]} 72. Kf4 {[%emt 0:00:05]} Ke6 {[%emt 0:00:11]} 73. Ke4 {[%emt 0:00:05]} f5+ {[%emt 0:00:03]} 74. Kf4 {[%emt 0:00:05]} Kf6 {[%emt 0:00:03]} 75. Kf3 {[%emt 0:00:07]} Kg5 {[%emt 0:00:22]} 76. Kg3 {[%emt 0:00:05]} f4+ {[%emt 0:00:06]} 77. Kf3 {[%emt 0:00:04]} Kf5 {[%emt 0:00:04] Kg3 fxg3} 1/2-1/2

[Event "POL-chT 2 Liga 2019"]
[Site "Poronin"]
[Date "2019.09.08"]
[Round "2.26"]
[White "Brozyna, Mateusz"]
[Black "Pacan-Milej, Kosma"]
[Result "0-1"]
[ECO "B92"]
[WhiteElo "2194"]
[BlackElo "2287"]
[Annotator "NA"]
[PlyCount "130"]
[EventDate "2019.09.07"]
[EventType "team-tourn"]
[EventCountry "POL"]
[SourceTitle "playchess.com"]
[Source "ChessBase"]
[SourceQuality "1"]
[TimeControl "40/5400+30:1800+30"]

1. e4 {[%emt 0:00:00]} c5 {[%emt 0:00:00]} 2. Nf3 {[%emt 0:00:00]} d6 {[%emt 0:00:00]} 3. d4 {[%emt 0:00:00]} cxd4 {[%emt 0:00:00]} 4. Nxd4 {[%emt 0:00:00]} Nf6 {[%emt 0:00:00]} 5. Nc3 {[%emt 0:00:08]} a6 {[%emt 0:00:00]} 6. Be2 {[%emt 0:00:07]} e5 {[%emt 0:00:00]} 7. Nb3 {[%emt 0:00:38]} Be7 {[%emt 0:00:06]} 8. O-O {[%emt 0:00:09]} O-O {[%emt 0:00:16]} 9. a4 {[%emt 0:00:15]} Be6 {[%emt 0:01:59]} 10. Bf3 {[%emt 0:00:27]} Nbd7 {[%emt 0:00:59]} 11. Re1 {[%emt 0:00:36]} Qb8 {[%emt 0:01:52]} 12. Nd2 {[%emt 0:05:09]} Bd8 {[%emt 0:06:24]} 13. Nd5 {[%emt 0:07:06]} Nxd5 {[%emt 0:02:44]} 14. exd5 {[%emt 0:00:09]} Bf5 {[%emt 0:00:02]} 15. Nc4 {[%emt 0:05:38]} Bg6 {[%emt 0:05:58]} 16. b3 {[%emt 0:09:58]} Nb6 {[%emt 0:07:01]} 17. Ne3 {[%emt 0:13:05]} a5 {[%emt 0:00:33]} 18. Bb2 {[%emt 0:07:22]} f5 {[%emt 0:01:12]} 19. Bh5 {[%emt 0:06:40]} Qc7 {[%emt 0:02:48]} 20. Bxg6 {[%emt 0:00:28]} hxg6 {[%emt 0:00:03]} 21. Rc1 {[%emt 0:02:53]} Bg5 {[%emt 0:02:49]} 22. Qf3 {[%emt 0:09:58]} Rac8 {[%emt 0:01:13]} 23. c4 {[%emt 0:06:04]} Nd7 {[%emt 0:00:41]} 24. Qg3 {[%emt 0:01:16]} Qd8 {[%emt 0:02:03]} 25. h4 {[%emt 0:02:16]} Bxe3 {[%emt 0:06:01]} 26. fxe3 {[%emt 0:06:22]} Nc5 {[%emt 0:01:01]} 27. Rb1 {[%emt 0:04:06]} Nxb3 {[%emt 0:07:42]} 28. Bxe5 {[%emt 0:01:09]} Nd2 {[%emt 0:00:02]} 29. Bd4 {[%emt 0:02:42]} Nxb1 {[%emt 0:00:35]} 30. Rxb1 {[%emt 0:00:03]} Rxc4 {[%emt 0:33:07]} 31. Qxg6 {[%emt 0:00:34]} Rxd4 {[%emt 0:01:53]} 32. exd4 {[%emt 0:00:04]} Qxh4 {[%emt 0:00:15]} 33. Qe6+ {[%emt 0:01:22]} Kh7 {[%emt 0:01:35]} 34. Qe3 {[%emt 0:02:18]} Rf7 {[%emt 0:02:41]} 35. Qf2 {[%emt 0:04:47]} Qe4 {[%emt 0:02:56]} 36. Rb6 {[%emt 0:01:35]} Rd7 {[%emt 0:05:40]} 37. Rb5 {[%emt 0:00:16]} Rc7 {[%emt 0:01:10]} 38. Rxa5 {[%emt 0:00:53]} Rc2 {[%emt 0:02:51]} 39. Qf3 {[%emt 0:00:52]} Qxd4+ {[%emt 0:01:56]} 40. Kh2 {[%emt 0:00:00]} Qh4+ {[%emt 0:00:00]} 41. Qh3 {[%emt 0:01:31]} Qxh3+ {[%emt 0:05:18]} 42. Kxh3 {[%emt 0:00:33]} Rc3+ {[%emt 0:01:52]} 43. Kh2 {[%emt 0:01:02]} Kg6 {[%emt 0:01:37]} 44. Rb5 {[%emt 0:01:50]} Rc7 {[%emt 0:01:43]} 45. Rb6 {[%emt 0:00:40]} Rd7 {[%emt 0:00:34]} 46. Rb1 {[%emt 0:08:05]} Kf6 {[%emt 0:00:34]} 47. Re1 {[%emt 0:00:37]} Re7 {[%emt 0:00:39]} 48. Rb1 {[%emt 0:00:36]} g5 {[%emt 0:01:11]} 49. g4 {[%emt 0:05:06]} f4 {[%emt 0:10:44]} 50. Kg2 {[%emt 0:00:45]} Re2+ {[%emt 0:02:34]} 51. Kf3 {[%emt 0:00:40]} Re3+ {[%emt 0:01:46]} 52. Kf2 {[%emt 0:00:33]} Re4 {[%emt 0:04:11]} 53. a5 {[%emt 0:04:47]} Re7 {[%emt 0:02:55]} 54. Kf3 {[%emt 0:01:09]} Re3+ {[%emt 0:01:15]} 55. Kf2 {[%emt 0:00:32]} Ke5 {[%emt 0:00:58]} 56. Rxb7 {[%emt 0:00:41]} Ra3 {[%emt 0:00:38]} 57. Rg7 {[%emt 0:01:01]} Rxa5 {[%emt 0:00:53]} 58. Rxg5+ {[%emt 0:02:16]} Ke4 {[%emt 0:00:32]} 59. Rg6 {[%emt 0:02:20]} Ra2+ 60. Ke1 Kf3 61. Rxd6 Kg2 62. Rf6 f3 63. g5 f2+ 64. Rxf2+ {[%emt 0:00:00]} Rxf2 {[%emt 0:00:00]} 65. g6 {[%emt 0:00:00]} Rf5 {[%emt 0:00:00]} 0-1

[Event "POL-chT 2 Liga 2019"]
[Site "Poronin"]
[Date "2019.09.08"]
[Round "2.29"]
[White "Kowalczyk, Pawel"]
[Black "Lach, Piotr"]
[Result "1-0"]
[ECO "A45"]
[WhiteElo "2294"]
[BlackElo "2125"]
[Annotator "NA"]
[PlyCount "97"]
[EventDate "2019.09.07"]
[EventType "team-tourn"]
[EventCountry "POL"]
[SourceTitle "playchess.com"]
[Source "ChessBase"]
[SourceQuality "1"]
[TimeControl "40/5400+30:1800+30"]

1. d4 {[%emt 0:01:50]} Nf6 {[%emt 0:00:00]} 2. g3 {[%emt 0:00:15]} e6 {[%emt 0:00:50]} 3. Bg2 {[%emt 0:00:30]} d5 {[%emt 0:01:29]} 4. Nf3 {[%emt 0:00:14]} Be7 {[%emt 0:01:14]} 5. c4 {[%emt 0:00:18]} O-O {[%emt 0:01:02]} 6. O-O {[%emt 0:00:17]} c6 {[%emt 0:04:14]} 7. Nc3 {[%emt 0:01:39]} Nbd7 {[%emt 0:00:44]} 8. b3 {[%emt 0:04:16]} b6 {[%emt 0:02:55]} 9. cxd5 {[%emt 0:03:05]} cxd5 {[%emt 0:02:36]} 10. Bf4 {[%emt 0:00:26]} Ba6 {[%emt 0:01:34]} 11. a4 {[%emt 0:01:52]} Rc8 {[%emt 0:19:32]} 12. Nb5 {[%emt 0:01:25]} Ne4 {[%emt 0:02:09]} 13. Rc1 {[%emt 0:01:07]} Bxb5 {[%emt 0:03:10]} 14. axb5 {[%emt 0:00:08]} g5 {[%emt 0:03:04]} 15. Be3 {[%emt 0:01:40]} f5 {[%emt 0:04:57]} 16. Qd3 {[%emt 0:02:12]} g4 {[%emt 0:05:41]} 17. Rxc8 {[%emt 0:13:17]} Qxc8 {[%emt 0:00:09]} 18. Rc1 {[%emt 0:00:06]} Qb7 {[%emt 0:02:55]} 19. Ne1 {[%emt 0:00:17]} Rc8 {[%emt 0:01:23]} 20. Bxe4 {[%emt 0:02:44]} dxe4 {[%emt 0:16:12]} 21. Rxc8+ {[%emt 0:00:06]} Qxc8 {[%emt 0:00:04]} 22. Qc4 {[%emt 0:00:03]} Qxc4 {[%emt 0:00:42]} 23. bxc4 {[%emt 0:00:02]} Kf7 {[%emt 0:04:00]} 24. Nc2 {[%emt 0:05:18]} Ke8 {[%emt 0:00:43]} 25. Bf4 {[%emt 0:02:40]} Bf6 {[%emt 0:03:55]} 26. Bd6 {[%emt 0:00:33]} Be7 {[%emt 0:00:13]} 27. Bc7 {[%emt 0:05:41]} Bd8 {[%emt 0:01:16]} 28. Bf4 {[%emt 0:03:05]} Bf6 {[%emt 0:00:11]} 29. Kf1 {[%emt 0:00:25]} Kd8 {[%emt 0:02:43]} 30. Nb4 {[%emt 0:00:39]} Kc8 {[%emt 0:00:20]} 31. e3 {[%emt 0:02:58]} Kb7 {[%emt 0:00:38]} 32. Bd6 {[%emt 0:00:09]} Bd8 {[%emt 0:06:41]} 33. Ke2 {[%emt 0:06:37]} Bc7 {[%emt 0:00:53]} 34. Be7 {[%emt 0:00:03]} Bb8 {[%emt 0:05:35]} 35. Kd1 {[%emt 0:00:17]} h5 {[%emt 0:00:12]} 36. Kc2 {[%emt 0:00:05]} e5 {[%emt 0:00:34]} 37. c5 {[%emt 0:00:42]} bxc5 {[%emt 0:00:28]} 38. dxc5 {[%emt 0:00:02]} Kc8 {[%emt 0:00:45]} 39. Kb3 {[%emt 0:00:14]} Bc7 {[%emt 0:01:08]} 40. Nc6 {[%emt 0:00:00]} Kb7 {[%emt 0:00:00]} 41. Kc4 {[%emt 0:01:34]} a6 {[%emt 0:00:47]} 42. bxa6+ {[%emt 0:02:42]} Kxa6 {[%emt 0:03:51]} 43. Nb4+ {[%emt 0:01:03]} Ka7 {[%emt 0:01:15]} 44. Kb5 {[%emt 0:00:07]} Nb8 {[%emt 0:03:22]} 45. Nd5 {[%emt 0:00:13]} Kb7 {[%emt 0:00:12]} 46. Nxc7 {[%emt 0:00:13]} Kxc7 47. Bd6+ Kb7 {[%emt 0:00:41]} 48. Bxb8 {[%emt 0:00:37]} Kxb8 {[%emt 0:00:04]} 49. Kc6 {[%emt 0:00:07]} 1-0

[Event "POL-chT 2 Liga 2019"]
[Site "Poronin"]
[Date "2019.09.08"]
[Round "2.30"]
[White "Jedrocha, Katarzyna"]
[Black "Starosta, Martyna"]
[Result "1-0"]
[ECO "A45"]
[WhiteElo "1943"]
[BlackElo "1814"]
[Annotator "NA"]
[PlyCount "111"]
[EventDate "2019.09.07"]
[EventType "team-tourn"]
[EventCountry "POL"]
[SourceTitle "playchess.com"]
[Source "ChessBase"]
[SourceQuality "1"]
[TimeControl "40/5400+30:1800+30"]

1. d4 {[%emt 0:00:00]} Nf6 {[%emt 0:00:00]} 2. g3 {[%emt 0:00:12]} c5 {[%emt 0:00:00]} 3. Nf3 {[%emt 0:01:55]} g6 {[%emt 0:00:44]} 4. Bg2 {[%emt 0:00:28]} Bg7 {[%emt 0:01:00]} 5. O-O {[%emt 0:01:13]} O-O {[%emt 0:01:25]} 6. e3 {[%emt 0:02:42]} d6 {[%emt 0:01:56]} 7. c4 {[%emt 0:01:50]} Nbd7 {[%emt 0:01:49]} 8. Nc3 {[%emt 0:02:25]} Re8 {[%emt 0:01:31]} 9. Re1 {[%emt 0:06:15]} e5 {[%emt 0:05:22]} 10. dxe5 {[%emt 0:02:11]} dxe5 {[%emt 0:00:29]} 11. e4 {[%emt 0:01:04]} b6 {[%emt 0:00:58]} 12. Bg5 {[%emt 0:04:16]} h6 {[%emt 0:00:54]} 13. Bxf6 {[%emt 0:00:33]} Bxf6 {[%emt 0:01:22]} 14. Qd2 {[%emt 0:01:36]} Bg7 {[%emt 0:00:59]} 15. Rad1 {[%emt 0:00:30]} Qf6 {[%emt 0:06:16]} 16. Nb5 {[%emt 0:13:57]} Qc6 {[%emt 0:00:44]} 17. Qd5 {[%emt 0:03:50]} Qxd5 {[%emt 0:01:49]} 18. Rxd5 {[%emt 0:00:25]} Re7 {[%emt 0:03:55]} 19. Red1 {[%emt 0:06:00]} Nf8 {[%emt 0:02:15]} 20. Rd8 {[%emt 0:06:21]} Bb7 {[%emt 0:01:41]} 21. Nc3 {[%emt 0:00:45]} Rxd8 {[%emt 0:04:11]} 22. Rxd8 {[%emt 0:00:03]} f6 {[%emt 0:14:42]} 23. Bh3 {[%emt 0:02:32]} Kf7 {[%emt 0:06:03]} 24. Nh4 {[%emt 0:04:20]} Re8 {[%emt 0:09:18]} 25. Rxe8 {[%emt 0:02:17]} Kxe8 {[%emt 0:00:02]} 26. f3 {[%emt 0:01:04]} Bc6 {[%emt 0:02:08]} 27. Kf2 {[%emt 0:03:23]} Bd7 {[%emt 0:00:41]} 28. Bxd7+ {[%emt 0:00:35]} Kxd7 {[%emt 0:00:10]} 29. Nb5 {[%emt 0:03:09]} a6 {[%emt 0:00:40]} 30. Nc3 {[%emt 0:00:04]} h5 {[%emt 0:02:07]} 31. a4 {[%emt 0:04:36]} f5 {[%emt 0:04:09]} 32. exf5 {[%emt 0:03:29]} gxf5 {[%emt 0:00:34]} 33. Nxf5 {[%emt 0:00:26]} Bf6 {[%emt 0:00:10]} 34. Nd5 {[%emt 0:01:35]} Bd8 {[%emt 0:00:18]} 35. Ke3 {[%emt 0:03:36]} Ng6 {[%emt 0:01:22]} 36. Ke4 {[%emt 0:02:57]} Kc6 {[%emt 0:03:48]} 37. h4 {[%emt 0:01:09]} b5 {[%emt 0:01:39]} 38. axb5+ {[%emt 0:00:21]} axb5 {[%emt 0:00:05]} 39. b3 {[%emt 0:00:16]} bxc4 {[%emt 0:01:24]} 40. bxc4 {[%emt 0:00:00]} Kd7 {[%emt 0:00:00]} 41. Ng7 {[%emt 0:00:38]} Ba5 {[%emt 0:02:35]} 42. Nxh5 {[%emt 0:00:38]} Ke6 {[%emt 0:02:20]} 43. Ng7+ {[%emt 0:01:02]} Kf7 {[%emt 0:00:22]} 44. Nf5 {[%emt 0:00:07]} Ke6 {[%emt 0:00:36]} 45. h5 {[%emt 0:00:17]} Nf8 {[%emt 0:00:32]} 46. g4 {[%emt 0:01:54]} Nh7 {[%emt 0:00:24]} 47. Nh4 {[%emt 0:01:51]} Be1 {[%emt 0:01:31]} 48. Ng6 {[%emt 0:00:20]} Bf2 {[%emt 0:03:25]} 49. f4 {[%emt 0:02:28]} exf4 {[%emt 0:00:34]} 50. Ngxf4+ {[%emt 0:00:16]} Kf7 {[%emt 0:00:22]} 51. Kf5 {[%emt 0:00:22]} Bh4 {[%emt 0:00:45]} 52. Ne6 {[%emt 0:00:36]} Bf2 {[%emt 0:01:11]} 53. g5 {[%emt 0:00:18]} Nf8 {[%emt 0:01:08]} 54. g6+ {[%emt 0:01:39]} Kg8 {[%emt 0:00:19]} 55. Nf6+ {[%emt 0:00:11]} Kh8 {[%emt 0:00:09]} 56. g7# 1-0

[Event "POL-chT 2 Liga 2019"]
[Site "Poronin"]
[Date "2019.09.08"]
[Round "2.31"]
[White "Wandzik, Wojciech"]
[Black "Bednarczyk, Damian"]
[Result "1-0"]
[ECO "B85"]
[WhiteElo "2409"]
[BlackElo "2216"]
[Annotator "NA"]
[PlyCount "51"]
[EventDate "2019.09.07"]
[EventType "team-tourn"]
[EventCountry "POL"]
[SourceTitle "playchess.com"]
[Source "ChessBase"]
[SourceQuality "1"]
[TimeControl "40/5400+30:1800+30"]

1. e4 {[%emt 0:00:00]} c5 {[%emt 0:00:00]} 2. Nf3 {[%emt 0:00:00]} d6 {[%emt 0:00:23]} 3. d4 {[%emt 0:00:03]} cxd4 {[%emt 0:00:07]} 4. Nxd4 {[%emt 0:00:05]} Nf6 {[%emt 0:00:19]} 5. Nc3 {[%emt 0:00:16]} e6 {[%emt 0:04:14]} 6. Be2 {[%emt 0:01:22]} Be7 {[%emt 0:00:57]} 7. O-O {[%emt 0:00:16]} O-O {[%emt 0:00:18]} 8. Be3 {[%emt 0:01:12]} a6 {[%emt 0:01:54]} 9. f4 {[%emt 0:01:38]} Nc6 {[%emt 0:04:11]} 10. Qe1 {[%emt 0:05:17]} Qc7 {[%emt 0:09:56]} 11. Qg3 {[%emt 0:01:42]} Nxd4 {[%emt 0:09:38]} 12. Bxd4 {[%emt 0:00:19]} b5 {[%emt 0:00:52]} 13. a3 Bb7 {[%emt 0:01:41]} 14. Rae1 {[%emt 0:06:55]} g6 {[%emt 0:07:52]} 15. Bf3 {[%emt 0:16:36]} Rfd8 {[%emt 0:16:47]} 16. f5 {[%emt 0:09:57]} e5 {[%emt 0:02:58]} 17. Be3 {[%emt 0:01:31]} d5 {[%emt 0:03:15]} 18. fxg6 {[%emt 0:11:43]} hxg6 {[%emt 0:00:48]} 19. exd5 {[%emt 0:00:37]} Bc5 {[%emt 0:11:26]} 20. Bxc5 {[%emt 0:13:01]} Qxc5+ {[%emt 0:00:15]} 21. Kh1 {[%emt 0:00:05]} Nxd5 {[%emt 0:09:06]} 22. Rxe5 {[%emt 0:05:58]} Qc4 {[%emt 0:00:58]} 23. Rfe1 {[%emt 0:01:43]} Nxc3 {[%emt 0:06:54]} 24. Bxb7 {[%emt 0:01:23]} Rab8 {[%emt 0:01:20]} 25. Bf3 {[%emt 0:00:42]} Na2 {[%emt 0:02:26]} 26. Bd5 {[%emt 0:00:57]} 1-0